fUSD/lending_fUSD_20250511
["ID","MTS","AMOUNT","RATE_DAILY","PERIOD"]
[360686191,1746928242404,-501.81829406,0.00019995,2]
[360686192,1746928242413,-400.0,0.00019995,2]
[360686193,1746928242423,-441.4550821,0.00019995,2]
[360686194,1746928242432,-386.6980963,0.00019995,2]
[360686195,1746928242442,-226.7199257,0.00019995,2]
[360686196,1746928242451,-156.08790463,0.00019995,2]
[360686197,1746928242460,-409.8625109,0.00019995,2]
[360686198,1746928242469,-449.49375215,0.00019995,2]
[360686199,1746928242479,-400.0,0.00019995,2]
[360686200,1746928242488,-401.53527318,0.00019995,2]
[360686201,1746928242500,-413.01683892,0.00019995,2]
[360686202,1746928242509,-456.22840369,0.00019995,2]
[360686203,1746928242519,-403.90486062,0.00019995,2]
[360686204,1746928242528,-404.15866988,0.00019995,2]
[360686205,1746928242537,-413.33944194,0.00019995,2]
[360686206,1746928242547,-457.42,0.00019995,2]
[360686207,1746928242557,-402.26670047,0.00019995,2]
[360686208,1746928242566,-400.0,0.00019995,2]
[360686209,1746928242576,-409.3090887,0.00019995,2]
[360686210,1746928242585,-401.6796779,0.00019995,2]
[360686211,1746928242595,-526.61,0.00019995,2]
[360686212,1746928242604,-408.04343269,0.00019995,2]
[360686213,1746928242614,-406.58786232,0.00019995,2]
[360686214,1746928242623,-400.0,0.00019995,2]
[360686215,1746928242633,-502.23250671,0.00019995,2]
[360686216,1746928242642,-400.0,0.00019995,2]
[360686217,1746928242652,-400.0,0.00019995,2]
[360686218,1746928242661,-400.0,0.00019995,2]
[360686219,1746928242670,-349.41319124,0.00019995,2]
[360686220,1746928242680,-422.20875975,0.00019995,2]
[360686221,1746928242689,-393.21191153,0.00019995,2]
[360686222,1746928242698,-401.7846809,0.00019995,2]
[360686223,1746928242708,-419.98221898,0.00019995,2]
[360686224,1746928242718,-1108.59,0.00019995,2]
[360686225,1746928242727,-400.0,0.00019995,2]
[360686226,1746928242736,-407.41567438,0.00019995,2]
[360686228,1746928242749,-417.99669882,0.00019995,2]
[360686230,1746928242758,-271.80475412,0.00019995,2]
[360686232,1746928242768,-400.0,0.00019995,2]
[360686233,1746928242778,-400.0,0.00019995,2]
[360686235,1746928242787,-405.22331827,0.00019995,2]
[360686236,1746928242797,-385.41402225,0.00019995,2]
[360686237,1746928242806,-232.9529315,0.00019995,2]
[360686238,1746928242815,-400.0,0.00019995,2]
[360686239,1746928242825,-423.79,0.00019995,2]
[360686240,1746928242834,-400.0,0.00019995,2]
[360686241,1746928242844,-452.75780687,0.00019995,2]
[360686242,1746928242853,-453.74968327,0.00019995,2]
[360686243,1746928242863,-406.16968731,0.00019995,2]
[360686244,1746928242873,-411.84442164,0.00019995,2]
[360686245,1746928242883,-400.0,0.00019995,2]
[360686246,1746928242893,-422.72312085,0.00019995,2]
[360686247,1746928242902,-402.59594909,0.00019995,2]
[360686248,1746928242912,-434.40903377,0.00019995,2]
[360686249,1746928242922,-400.0,0.00019995,2]
[360686250,1746928242931,-789.9,0.00019995,2]
[360686251,1746928242941,-400.0,0.00019995,2]
[360686252,1746928242950,-428.74003603,0.00019995,2]
[360686253,1746928242959,-432.05105305,0.00019995,2]
[360686254,1746928242969,-158.35727255,0.00019995,2]
[360686255,1746928242979,-427.75504495,0.00019995,2]
[360686256,1746928242988,-400.0,0.00019995,2]
[360686257,1746928243003,-400.0,0.00019995,2]
[360686258,1746928243012,-411.09331161,0.00019995,2]
[360686259,1746928243021,-788.24,0.00019995,2]
[360686260,1746928243031,-400.0,0.00019995,2]
[360686261,1746928243040,-400.0,0.00019995,2]
[360686262,1746928243050,-417.93509722,0.00019995,2]
[360686263,1746928243059,-402.54708512,0.00019995,2]
[360686264,1746928243068,-400.0,0.00019995,2]
[360686265,1746928243078,-403.7076674,0.00019995,2]
[360686266,1746928243087,-450.27500136,0.00019995,2]
[360686267,1746928243096,-470.52609501,0.00019995,2]
[360686268,1746928243106,-187.0019851,0.00019995,2]
[360686269,1746928243118,-444.51830785,0.00019995,2]
[360686270,1746928243127,-400.0,0.00019995,2]
[360686271,1746928243137,-402.98545202,0.00019995,2]
[360686272,1746928243147,-448.77829627,0.00019995,2]
[360686273,1746928243157,-400.0,0.00019995,2]
[360686274,1746928243166,-400.0,0.00019995,2]
[360686275,1746928243175,-400.0,0.00019995,2]
[360686276,1746928243186,-18452.34,0.00019995,2]
[360686277,1746928243195,-401.5,0.00019995,2]
[360686278,1746928243205,-400.0,0.00019995,2]
[360686279,1746928243215,-400.0,0.00019995,2]
[360686280,1746928243225,-400.0,0.00019995,2]
[360686281,1746928243235,-400.0,0.00019995,2]
[360686282,1746928243246,-400.0,0.00019995,2]
[360686283,1746928243255,-506.3092848,0.00019995,2]
[360686284,1746928243265,-400.0,0.00019995,2]
[360686285,1746928243275,-400.0,0.00019995,2]
[360686286,1746928243284,-400.0,0.00019995,2]
[360686287,1746928243294,-474.09,0.00019995,2]
[360686288,1746928243303,-400.0,0.00019995,2]
[360686289,1746928243312,-400.0,0.00019995,2]
[360686290,1746928243321,-410.63676288,0.00019995,2]
[360686291,1746928243331,-400.0,0.00019995,2]
[360686292,1746928243340,-400.0,0.00019995,2]
[360686293,1746928243349,-400.0,0.00019995,2]
[360686294,1746928243358,-400.0,0.00019995,2]
[360686295,1746928243371,-400.0,0.00019995,2]
[360686296,1746928243380,-400.0,0.00019995,2]
[360686297,1746928243389,-453.35,0.00019995,2]
[360686298,1746928243400,-462.14088801,0.00019995,2]
[360686299,1746928243411,-453.52729457,0.00019995,2]
[360686300,1746928243420,-400.0,0.00019995,2]
[360686301,1746928243430,-400.0,0.00019995,2]
[360686302,1746928243442,-400.0,0.00019995,2]
[360686303,1746928243451,-400.0,0.00019995,2]
[360686304,1746928243461,-199.2152245,0.00019995,2]
[360686305,1746928243471,-242.28553039,0.00019995,2]
[360686306,1746928243480,-430.7,0.00019995,2]
[360686307,1746928243490,-400.0,0.00019995,2]
[360686308,1746928243501,-400.0,0.00019995,2]
[360686309,1746928243511,-400.0,0.00019995,2]
[360686311,1746928243521,-435.82,0.00019995,2]
[360686313,1746928243531,-369.10962517,0.00019995,2]
[360686314,1746928243540,-400.0,0.00019995,2]
[360686315,1746928243550,-400.0,0.00019995,2]
[360686316,1746928243560,-400.0,0.00019995,2]
[360686317,1746928243570,-484.31,0.00019995,2]
[360686318,1746928243580,-457.5,0.00019995,2]
[360686319,1746928243590,-1473.54,0.00019995,2]
[360686320,1746928243599,-400.0,0.00019995,2]
[360686321,1746928243609,-1003.99,0.00019995,2]
[360686322,1746928243618,-400.0,0.00019995,2]
[360686323,1746928243628,-400.0,0.00019995,2]
[360686324,1746928243637,-400.0,0.00019995,2]
[360686325,1746928243647,-413.65031342,0.00019995,2]
[360686326,1746928243657,-400.0,0.00019995,2]
[360686327,1746928243666,-1756.71,0.00019995,2]
[360686328,1746928243675,-400.0,0.00019995,2]
[360686329,1746928243685,-400.0,0.00019995,2]
[360686330,1746928243695,-400.0,0.00019995,2]
[360686331,1746928243704,-400.0,0.00019995,2]
[360686332,1746928243714,-431.07411712,0.00019995,2]
[360686333,1746928243725,-400.0,0.00019995,2]
[360686334,1746928243735,-400.0,0.00019995,2]
[360686335,1746928243746,-815.17,0.00019995,2]
[360686336,1746928243756,-263.87002448,0.00019995,2]
[360686337,1746928243766,-400.0,0.00019995,2]
[360686338,1746928243776,-414.31,0.00019995,2]
[360686339,1746928243786,-3621.28,0.00019995,2]
[360686340,1746928243795,-400.0,0.00019995,2]
[360686341,1746928243805,-400.0,0.00019995,2]
[360686342,1746928243815,-398.95827827,0.00019995,2]
[360686343,1746928243825,-400.0,0.00019995,2]
[360686344,1746928243835,-345.97,0.00019995,2]
[360686345,1746928243844,-400.0,0.00019995,2]
[360686346,1746928243854,-400.0,0.00019995,2]
[360686347,1746928243864,-400.0,0.00019995,2]
[360686348,1746928243874,-400.0,0.00019995,2]
[360686349,1746928243884,-408.51495994,0.00019995,2]
[360686350,1746928243894,-400.0,0.00019995,2]
[360686351,1746928243904,-400.0,0.00019995,2]
[360686352,1746928243913,-462.49210653,0.00019996,2]
[360686353,1746928243923,-285.82824208,0.00019996,2]
[360686354,1746928243934,-400.0,0.00019996,2]
[360686355,1746928243944,-400.0,0.00019996,2]
[360686356,1746928243954,-400.0,0.00019996,2]
[360686357,1746928243964,-400.0,0.00019996,2]
[360686358,1746928243974,-400.0,0.00019996,2]
[360686359,1746928243983,-400.0,0.00019996,2]
[360686360,1746928243995,-400.0,0.00019996,2]
[360686361,1746928244193,-400.0,0.00019996,2]
[360686362,1746928244204,-317.56391192,0.00019996,2]
[360686363,1746928244214,-400.0,0.00019996,2]
[360686364,1746928244224,-400.0,0.00019996,2]
[360686365,1746928244233,-400.0,0.00019996,2]
[360686366,1746928244246,-400.0,0.00019996,2]
[360686367,1746928244255,-400.0,0.00019996,2]
[360686368,1746928244265,-471.48,0.00019996,2]
[360686369,1746928244275,-400.0,0.00019996,2]
[360686370,1746928244284,-400.0,0.00019996,2]
[360686371,1746928244294,-468.24,0.00019996,2]
[360686372,1746928244304,-422.81705961,0.00019996,2]
[360686373,1746928244313,-509.687982,0.00019996,2]
[360686374,1746928244323,-315.14843484,0.00019996,2]
[360686375,1746928244333,-400.0,0.00019996,2]
[360686376,1746928244343,-412.25659454,0.00019996,2]
[360686377,1746928244352,-239.27042029,0.00019996,2]
[360686378,1746928244362,-400.0,0.00019996,2]
[360686379,1746928244373,-400.0,0.00019996,2]
[360686380,1746928244382,-400.0,0.00019996,2]
[360686381,1746928244392,-400.0,0.00019996,2]
[360686382,1746928244402,-532.89559453,0.00019996,2]
[360686383,1746928244412,-400.0,0.00019996,2]
[360686384,1746928244421,-467.8119713,0.00019996,2]
[360686385,1746928244431,-400.0,0.00019996,2]
[360686386,1746928244441,-400.0,0.00019996,2]
[360686387,1746928244450,-423.79,0.00019996,2]
[360686388,1746928244459,-400.0,0.00019996,2]
[360686389,1746928244469,-517.48721966,0.00019996,2]
[360686390,1746928244479,-421.72363742,0.00019996,2]
[360686391,1746928244488,-323.94728056,0.00019996,2]
[360686392,1746928244500,-400.0,0.00019996,2]
[360686393,1746928244510,-788.24,0.00019996,2]
[360686394,1746928244520,-400.0,0.00019996,2]
[360686395,1746928244529,-400.0,0.00019996,2]
[360686396,1746928244540,-400.0,0.00019996,2]
[360686397,1746928244549,-400.0,0.00019996,2]
[360686398,1746928244559,-400.0,0.00019996,2]
[360686399,1746928244568,-400.0,0.00019996,2]
[360686400,1746928244577,-18452.34,0.00019996,2]
[360686401,1746928244587,-401.5,0.00019996,2]
[360686402,1746928244596,-451.33450268,0.00019996,2]
[360686403,1746928244606,-400.0,0.00019996,2]
[360686404,1746928244615,-400.0,0.00019996,2]
[360686405,1746928244624,-400.0,0.00019996,2]
[360686406,1746928244633,-400.0,0.00019996,2]
[360686407,1746928244642,-262.1693035,0.00019996,2]
[360686408,1746928244652,-435.74639378,0.00019996,2]
[360686409,1746928244661,-400.0,0.00019996,2]
[360686410,1746928244670,-400.0,0.00019996,2]
[360686411,1746928244680,-400.0,0.00019996,2]
[360686412,1746928244690,-400.0,0.00019996,2]
[360686413,1746928244699,-400.0,0.00019996,2]
[360686414,1746928244709,-151.77108959,0.00019996,2]
[360686415,1746928244718,-400.0,0.00019996,2]
[360686416,1746928244727,-400.0,0.00019996,2]
[360686417,1746928244737,-258.90614753,0.00019996,2]
[360686418,1746928244749,-400.0,0.00019996,2]
[360686419,1746928244758,-400.0,0.00019996,2]
[360686420,1746928244768,-400.0,0.00019996,2]
[360686421,1746928244778,-400.0,0.00019996,2]
[360686422,1746928244788,-400.0,0.00019996,2]
[360686423,1746928244798,-400.0,0.00019996,2]
[360686424,1746928244808,-400.0,0.00019996,2]
[360686425,1746928244818,-482.03243091,0.00019996,2]
[360686426,1746928244828,-400.0,0.00019996,2]
[360686427,1746928244837,-400.0,0.00019996,2]
[360686428,1746928244847,-474.09,0.00019996,2]
[360686429,1746928244857,-400.0,0.00019996,2]
[360686430,1746928244867,-400.0,0.00019996,2]
[360686431,1746928244877,-400.0,0.00019996,2]
[360686432,1746928244887,-400.0,0.00019996,2]
[360686433,1746928244897,-181.118015,0.00019996,2]
[360686434,1746928244907,-400.0,0.00019996,2]
[360686435,1746928244917,-400.0,0.00019996,2]
[360686436,1746928244927,-400.0,0.00019996,2]
[360686437,1746928244937,-668.33,0.00019996,2]
[360686438,1746928244947,-400.0,0.00019996,2]
[360686439,1746928244956,-668.33,0.00019996,2]
[360686440,1746928244967,-668.33,0.00019996,2]
[360686441,1746928244976,-668.33,0.00019996,2]
[360686442,1746928244985,-668.33,0.00019996,2]
[360686443,1746928244997,-400.0,0.00019996,2]
[360686444,1746928245007,-400.0,0.00019996,2]
[360686445,1746928245016,-453.35,0.00019996,2]
[360686446,1746928245026,-400.0,0.00019996,2]
[360686447,1746928245036,-400.0,0.00019996,2]
[360686448,1746928245045,-400.0,0.00019996,2]
[360686449,1746928245054,-348.47863317,0.00019996,2]
[360686450,1746928245064,-400.0,0.00019996,2]
[360686451,1746928245073,-400.0,0.00019996,2]
[360686452,1746928245082,-400.0,0.00019996,2]
[360686453,1746928245091,-400.0,0.00019996,2]
[360686454,1746928245101,-400.0,0.00019996,2]
[360686455,1746928245113,-400.0,0.00019996,2]
[360686456,1746928245123,-400.0,0.00019996,2]
[360686457,1746928245132,-400.0,0.00019996,2]
[360686458,1746928245141,-400.0,0.00019996,2]
[360686459,1746928245153,-358.99362428,0.00019996,2]
[360686460,1746928245162,-400.0,0.00019996,2]
[360686461,1746928245171,-400.0,0.00019996,2]
[360686462,1746928245181,-400.0,0.00019996,2]
[360686463,1746928245190,-212.6074357,0.00019996,2]
[360686464,1746928245199,-400.0,0.00019996,2]
[360686465,1746928245208,-430.7,0.00019996,2]
[360686466,1746928245218,-400.0,0.00019996,2]
[360686467,1746928245228,-277.7874114,0.00019996,2]
[360686468,1746928245237,-400.0,0.00019996,2]
[360686469,1746928245248,-400.0,0.00019996,2]
[360686470,1746928245258,-400.0,0.00019996,2]
[360686471,1746928245267,-207.99817881,0.00019996,2]
[360686472,1746928245276,-400.0,0.00019996,2]
[360686473,1746928245286,-400.0,0.00019996,2]
[360686474,1746928245295,-400.0,0.00019996,2]
[360686475,1746928245306,-540.98388686,0.00019996,2]
[360686476,1746928245316,-435.82,0.00019996,2]
[360686477,1746928245327,-400.0,0.00019996,2]
[360686478,1746928245338,-400.0,0.00019996,2]
[360686479,1746928245347,-400.0,0.00019996,2]
[360686480,1746928245357,-400.0,0.00019996,2]
[360686481,1746928245366,-491.47345835,0.00019996,2]
[360686482,1746928245375,-400.0,0.00019996,2]
[360686483,1746928245385,-400.0,0.00019996,2]
[360686484,1746928245394,-400.0,0.00019996,2]
[360686485,1746928245404,-400.0,0.00019996,2]
[360686486,1746928245415,-400.0,0.00019996,2]
[360686487,1746928245425,-400.0,0.00019996,2]
[360686488,1746928245436,-400.0,0.00019996,2]
[360686489,1746928245445,-435.2713251,0.00019996,2]
[360686490,1746928245454,-484.31,0.00019996,2]
[360686491,1746928245463,-457.5,0.00019996,2]
[360686492,1746928245473,-1473.54,0.00019996,2]
[360686493,1746928245483,-400.0,0.00019996,2]
[360686494,1746928245497,-157.73434089,0.00019996,2]
[360686495,1746928245507,-400.0,0.00019996,2]
[360686496,1746928245516,-550.53,0.00019996,2]
[360686497,1746928245526,-550.53,0.00019996,2]
[360686498,1746928245535,-550.53,0.00019996,2]
[360686499,1746928245545,-400.0,0.00019996,2]
[360686500,1746928245556,-400.0,0.00019996,2]
[360686501,1746928245566,-550.53,0.00019996,2]
[360686502,1746928245575,-400.0,0.00019996,2]
[360686503,1746928245584,-400.0,0.00019996,2]
[360686504,1746928245595,-550.53,0.00019996,2]
[360686505,1746928245606,-400.0,0.00019996,2]
[360686506,1746928245616,-1003.99,0.00019996,2]
[360686507,1746928245627,-166.78782014,0.00019996,2]
[360686508,1746928245637,-400.0,0.00019996,2]
[360686509,1746928245648,-400.0,0.00019996,2]
[360686510,1746928245657,-497.52084244,0.00019996,2]
[360686511,1746928245666,-400.0,0.00019996,2]
[360686513,1746928245676,-400.0,0.00019996,2]
[360686514,1746928245686,-1756.71,0.00019996,2]
[360686515,1746928245695,-400.0,0.00019996,2]
[360686516,1746928245704,-400.0,0.00019996,2]
[360686517,1746928245713,-400.0,0.00019996,2]
[360686518,1746928245723,-400.0,0.00019996,2]
[360686519,1746928245733,-400.0,0.00019996,2]
[360686520,1746928245744,-400.0,0.00019996,2]
[360686521,1746928245755,-400.0,0.00019996,2]
[360686522,1746928245765,-400.0,0.00019996,2]
[360686523,1746928245774,-400.0,0.00019996,2]
[360686524,1746928245784,-400.0,0.00019996,2]
[360686525,1746928245793,-400.0,0.00019996,2]
[360686526,1746928245803,-400.0,0.00019996,2]
[360686527,1746928245812,-400.0,0.00019996,2]
[360686528,1746928245822,-815.17,0.00019996,2]
[360686529,1746928245831,-400.0,0.00019996,2]
[360686530,1746928245841,-400.0,0.00019996,2]
[360686531,1746928245850,-400.0,0.00019996,2]
[360686532,1746928245860,-414.31,0.00019996,2]
[360686533,1746928245869,-400.0,0.00019996,2]
[360686534,1746928245879,-171.34100953,0.00019996,2]
[360686535,1746928245888,-3621.28,0.00019996,2]
[360686536,1746928245897,-400.0,0.00019996,2]
[360686537,1746928245907,-589.13,0.00019996,2]
[360686538,1746928245918,-589.13,0.00019996,2]
[360686539,1746928245927,-589.13,0.00019996,2]
[360686540,1746928245937,-589.13,0.00019996,2]
[360686541,1746928245947,-589.13,0.00019996,2]
[360686542,1746928245956,-400.0,0.00019996,2]
[360686543,1746928245966,-179.12900533,0.00019996,2]
[360686544,1746928245976,-495.25450123,0.00019996,2]
[360686545,1746928245985,-400.0,0.00019996,2]
[360686546,1746928245996,-400.0,0.00019996,2]
[360686547,1746928246006,-400.0,0.00019996,2]
[360686548,1746928246015,-400.0,0.00019996,2]
[360686549,1746928246025,-400.0,0.00019996,2]
[360686550,1746928246036,-400.0,0.00019996,2]
[360686551,1746928246046,-400.0,0.00019996,2]
[360686552,1746928246056,-400.0,0.00019996,2]
[360686553,1746928246068,-400.0,0.00019996,2]
[360686554,1746928246078,-400.0,0.00019996,2]
[360686555,1746928246088,-400.0,0.00019996,2]
[360686556,1746928246098,-400.0,0.00019996,2]
[360686557,1746928246108,-400.0,0.00019996,2]
[360686558,1746928246121,-400.0,0.00019996,2]
[360686559,1746928246130,-400.0,0.00019996,2]
[360686560,1746928246140,-256.4845125,0.00019996,2]
[360686561,1746928246150,-583.84,0.00019996,2]
[360686562,1746928246161,-583.84,0.00019996,2]
[360686563,1746928246170,-583.84,0.00019996,2]
[360686564,1746928246181,-583.84,0.00019996,2]
[360686565,1746928246190,-583.84,0.00019996,2]
[360686566,1746928246200,-400.0,0.00019996,2]
[360686567,1746928246209,-182.53477617,0.00019997,2]
[360686568,1746928246218,-210448.65579106,0.00019997,2]
[360686569,1746928246248,-400.0,0.00019995,2]
[360686570,1746928246258,-80310.72123168,0.00019997,2]
[360686571,1746928246270,-6023.224748,0.00019997,2]
[360686572,1746928246282,-39139.72153967,0.00019997,2]
[360686573,1746928246370,-283.6895,0.00019855,2]
[360686574,1746928246380,-400.0,0.00019996,2]
[360686575,1746928246390,-438785.21523927,0.00019997,2]
[360686576,1746928246618,-400.0,0.00019995,2]
[360686577,1746928246628,-400.0,0.00019996,2]
[360686578,1746928246639,-96108.70555695,0.00019997,2]
[360686579,1746928246656,-400.0,0.00019995,2]
[360686580,1746928246666,-85.44050642,0.00019997,2]
[360686581,1746928246678,-5210.0,0.00019997,2]
[360686582,1746928401819,500.0,0.00030137,120]
[360686583,1746928517313,400.0,0.00030136,120]
[360686584,1746928548870,250.0,0.00017,2]
[360686586,1746928573689,400.0,0.00030136,120]
[360686587,1746928677044,160.0,0.00030136,120]
[360686588,1746928728185,6491.0,0.00030137,120]
[360686589,1746928827210,945.2978371,0.0003,120]
[360686590,1746928838974,1388.05916,0.000185,5]
[360686591,1746928839154,1388.05916,0.000185,5]
[360686592,1746928839414,1388.05917,0.000185,5]
[360686593,1746928958256,267.24,0.00013699,2]
[360686594,1746929062413,849.8,0.00016829,2]
[360686595,1746929080875,264.96,0.00025685,120]
[360686596,1746929081096,264.96,0.0002802,120]
[360686600,1746929231091,-167.294,0.00018534,2]
[360686601,1746929231119,-170.14,0.0001862,2]
[360686602,1746929231144,-264.96,0.0001868,2]
[360686603,1746929231169,-369.57467437,0.000187,2]
[360686613,1746929432024,-152.24,0.00018611,2]
[360686615,1746929432034,-267.49,0.00018635,2]
[360686616,1746929432044,-62.33495999,0.000187,2]
[360686617,1746929432053,-174.62,0.00018748,2]
[360686618,1746929432062,-751.33129649,0.00018794,2]
[360686620,1746929432185,-143.96274612,0.00018794,2]
[360686621,1746929432194,-107.08553422,0.00018794,2]
[360686622,1746929432206,-43.91446578,0.00018794,2]
[360686623,1746929432215,-174.62,0.00018795,2]
[360686624,1746929432225,-300.0,0.00018805,2]
[360686625,1746929432234,-1200.0,0.00018805,2]
[360686626,1746929432244,-300.0,0.00018805,2]
[360686627,1746929432253,-4414.48316907,0.00018806,2]
[360686628,1746929432359,-2571.87429594,0.00018806,2]
[360686629,1746929432370,-3081.04491402,0.00018806,2]
[360686630,1746929432396,-2484.47008407,0.00018806,2]
[360686631,1746929432450,-8814.5,0.00018806,2]
[360686632,1746929432461,-2533.6275369,0.00018806,2]
[360686633,1746929432470,-150.0,0.00018814,2]
[360686634,1746929432479,-174.62,0.00018842,2]
[360686635,1746929432493,-1000.0,0.00018883,2]
[360686636,1746929432502,-350.76,0.00018992,2]
[360686637,1746929432511,-301.89001703,0.00018995,2]
[360686638,1746929432520,-152.81707303,0.00018995,2]
[360686639,1746929432530,-668.65185757,0.00018995,2]
[360686640,1746929432539,-207.4,0.00018995,2]
[360686641,1746929432548,-151.0,0.00018995,2]
[360686642,1746929432558,-300.0,0.00019,2]
[360686643,1746929432569,-200.0,0.0001903,2]
[360686644,1746929432578,-200.0,0.00019039,2]
[360686645,1746929432588,-200.0,0.00019055,2]
[360686646,1746929432598,-849.8,0.00019093,2]
[360686647,1746929432607,-151.0,0.00019178,2]
[360686648,1746929432616,-483.99782047,0.00019255,2]
[360686649,1746929432625,-165.32,0.00019317,2]
[360686650,1746929432636,-467.71902413,0.00019524,2]
[360686675,1746929438022,-16.27879635,0.00019524,2]
[360686676,1746929438031,-488.881,0.0001968,2]
[360686677,1746929438040,-767.76940301,0.00019695,2]
[360686678,1746929438050,-213.1259168,0.00019696,2]
[360686679,1746929438062,-42.7940832,0.00019696,2]
[360686680,1746929438071,-255.92,0.00019697,2]
[360686681,1746929438080,-255.92,0.00019698,2]
[360686682,1746929438090,-850.0,0.00019699,2]
[360686683,1746929438099,-225.19829935,0.00019699,2]
[360686684,1746929438120,-30.72170065,0.00019699,2]
[360686685,1746929438130,-232.97829965,0.00019725,2]
[360686686,1746929438226,-424.538785,0.00019725,2]
[360686687,1746929438239,-3925.04151535,0.00019725,2]
[360686688,1746929438249,-231.40871987,0.00019726,2]
[360686689,1746929438258,-300.0,0.00019756,2]
[360686690,1746929438267,-5424.85622605,0.00019763,2]
[360686691,1746929439292,-1199.9,0.00019763,2]
[360686692,1746929439303,-1007.8657815,0.00019763,2]
[360686694,1746929440113,-351.15779245,0.00019763,2]
[360686695,1746929440124,-2068.62548141,0.00019768,2]
[360686696,1746929440169,-1823.93915969,0.00019768,2]
[360686697,1746929440180,-154.36297733,0.00019779,2]
[360686698,1746929440191,-3892.56464104,0.00019783,2]
[360686699,1746929440201,-33405.6984,0.00019787,2]
[360686700,1746929440212,-1524.44508989,0.00019788,2]
[360686701,1746929440222,-346.47383713,0.00019788,2]
[360686702,1746929440232,-336.24768532,0.00019789,2]
[360686703,1746929440242,-1409.0802,0.00019789,2]
[360686704,1746929440251,-1000.0,0.00019789,2]
[360686705,1746929440261,-50036.8012,0.00019789,2]
[360686706,1746929440271,-2754.7778,0.00019789,2]
[360686707,1746929440280,-3892.56464104,0.00019797,2]
[360686708,1746929440290,-1021.0,0.000198,2]
[360686709,1746929440300,-1524.44508983,0.000198,2]
[360686710,1746929440310,-346.4738371,0.000198,2]
[360686711,1746929440319,-3892.56464104,0.00019812,2]
[360686712,1746929440328,-1524.44508983,0.00019813,2]
[360686713,1746929440337,-346.4738371,0.00019813,2]
[360686714,1746929440346,-1524.44508983,0.00019825,2]
[360686715,1746929440356,-346.4738371,0.00019825,2]
[360686716,1746929440365,-3892.56464104,0.00019827,2]
[360686717,1746929440375,-336.24768532,0.00019838,2]
[360686718,1746929440384,-1524.44508983,0.00019838,2]
[360686719,1746929440394,-346.4738371,0.00019838,2]
[360686720,1746929440403,-3892.56464104,0.00019841,2]
[360686721,1746929440413,-1524.44508983,0.0001985,2]
[360686722,1746929440425,-346.4738371,0.0001985,2]
[360686723,1746929440434,-3892.56464104,0.00019856,2]
[360686724,1746929440444,-1524.44508983,0.00019863,2]
[360686725,1746929440453,-346.4738371,0.00019863,2]
[360686726,1746929440463,-3892.56464104,0.00019871,2]
[360686727,1746929440472,-391.82509335,0.00019873,2]
[360686728,1746929440482,-500.88830568,0.00019873,2]
[360686729,1746929440495,-500.27962824,0.00019873,2]
[360686730,1746929440505,-500.83266963,0.00019873,2]
[360686731,1746929440514,-500.0,0.00019873,2]
[360686732,1746929440524,-501.23301826,0.00019873,2]
[360686733,1746929440535,-235.1987499,0.00019873,2]
[360686734,1746929440545,-1524.44508983,0.00019875,2]
[360686735,1746929440554,-346.4738371,0.00019875,2]
[360686736,1746929440564,-454.94,0.00019876,2]
[360686737,1746929440575,-400.0,0.00019885,2]